[Event "Titled Tuesday Blitz June 13 Early 2023"]
[White "Kuznetsov, Mikhail"]
[Black "Altman, Joshua"]
[WhiteFideId "4117190"]
[BlackFideId "426210"]
[WhiteElo "1981"]
[BlackElo "2028"]
[Result "1-0"]
[Round "3"]
[TimeControl "180+2"]
[Date "2023.06.13"]
[WhiteClock "0:00:05"]
[BlackClock "0:00:04"]
[Board "118"]

1. Nf3 {[%clk 0:03:00]}  Nf6 {[%clk 0:03:00]} 2. g3 {[%clk 0:03:01]}  b6 {[%clk 0:03:00]} 3. Bg2 {[%clk 0:03:00]}  Bb7 {[%clk 0:03:01]} 4. O-O {[%clk 0:03:00]}  e6 {[%clk 0:03:01]} 5. c4 {[%clk 0:02:58]}  Be7 {[%clk 0:03:01]} 6. Nc3 {[%clk 0:02:56]}  c5 {[%clk 0:02:59]} 7. d3 {[%clk 0:02:55]}  O-O {[%clk 0:02:59]} 8. e4 {[%clk 0:02:54]}  d6 {[%clk 0:02:59]} 9. Nd2 {[%clk 0:02:51]}  Qc8 {[%clk 0:02:49]} 10. f4 {[%clk 0:02:49]}  Nbd7 {[%clk 0:02:49]} 11. Nf3 {[%clk 0:02:48]}  a6 {[%clk 0:02:46]} 12. h3 {[%clk 0:02:47]}  Rd8 {[%clk 0:02:40]} 13. g4 {[%clk 0:02:47]}  Nf8 {[%clk 0:02:29]} 14. Nh2 {[%clk 0:02:37]}  d5 {[%clk 0:02:27]} 15. g5 {[%clk 0:02:32]}  Ne8 {[%clk 0:02:25]} 16. Qe2 {[%clk 0:02:31]}  d4 {[%clk 0:02:13]} 17. Nd1 {[%clk 0:02:30]}  b5 {[%clk 0:02:14]} 18. b3 {[%clk 0:02:29]}  a5 {[%clk 0:01:58]} 19. cxb5 {[%clk 0:02:06]}  a4 {[%clk 0:01:58]} 20. bxa4 {[%clk 0:02:06]}  Rxa4 {[%clk 0:01:59]} 21. Nb2 {[%clk 0:02:03]}  Rb4 {[%clk 0:01:54]} 22. a4 {[%clk 0:02:00]}  Nd6 {[%clk 0:01:40]} 23. Qc2 {[%clk 0:01:55]}  c4 {[%clk 0:01:36]} 24. dxc4 {[%clk 0:01:54]}  Nxc4 {[%clk 0:01:30]} 25. Nd3 {[%clk 0:01:53]}  Bc5 {[%clk 0:01:10]} 26. Kh1 {[%clk 0:01:34]}  Be7 {[%clk 0:01:04]} 27. Rd1 {[%clk 0:00:59]}  Na5 {[%clk 0:00:42]} 28. Qxc8 {[%clk 0:00:44]}  Rxc8 {[%clk 0:00:41]} 29. Nxb4 {[%clk 0:00:44]}  Bxb4 {[%clk 0:00:42]} 30. Bb2 {[%clk 0:00:23]}  e5 {[%clk 0:00:43]} 31. fxe5 {[%clk 0:00:16]}  Ne6 {[%clk 0:00:43]} 32. Nf3 {[%clk 0:00:16]}  Bxe4 {[%clk 0:00:42]} 33. Nxd4 {[%clk 0:00:14]}  Bxg2+ {[%clk 0:00:41]} 34. Kxg2 {[%clk 0:00:14]}  Nf4+ {[%clk 0:00:28]} 35. Kg3 {[%clk 0:00:10]}  Ng6 {[%clk 0:00:16]} 36. Nc6 {[%clk 0:00:03]}  Nxc6 {[%clk 0:00:12]} 37. bxc6 {[%clk 0:00:04]}  Ba5 {[%clk 0:00:11]} 38. Rac1 {[%clk 0:00:05]}  Ne7 {[%clk 0:00:10]} 39. Rd6 {[%clk 0:00:03]}  Nf5+ {[%clk 0:00:11]} 40. Kf4 {[%clk 0:00:02]}  Nxd6 {[%clk 0:00:09]} 41. exd6 {[%clk 0:00:03]}  Bd2+ {[%clk 0:00:10]} 42. Ke4 {[%clk 0:00:02]}  Bxc1 {[%clk 0:00:09]} 43. d7 {[%clk 0:00:03]}  Rd8 {[%clk 0:00:03]} 44. c7 {[%clk 0:00:04]}  Bxg5 {[%clk 0:00:03]} 45. c8=Q {[%clk 0:00:03]}  h6 {[%clk 0:00:03]} 46. Kf5 {[%clk 0:00:03]}  g6+ {[%clk 0:00:04]} 47. Kg4 {[%clk 0:00:03]}  Kh7 {[%clk 0:00:04]} 48. Bd4 {[%clk 0:00:03]}  f5+ {[%clk 0:00:04]} 49. Kf3 {[%clk 0:00:03]}  Be7 {[%clk 0:00:04]} 50. Bb6 {[%clk 0:00:03]}  Rxd7 {[%clk 0:00:02]} 51. Qxd7 {[%clk 0:00:04]}  Kg7 {[%clk 0:00:02]} 52. Qxe7+ {[%clk 0:00:04]}  Kg8 {[%clk 0:00:03]} 53. Bd4 {[%clk 0:00:04]}  g5 {[%clk 0:00:04]} 54. Qg7# {[%clk 0:00:05]} 1-0


[Site "https://www.chess.com"]

[Event "Titled Tuesday Blitz June 13 Early 2023"]
[White "Ansh M Shah"]
[Black "Kashlinskaya, Alina"]
[WhiteFideId "25033379"]
[BlackFideId "4198026"]
[WhiteElo "2084"]
[BlackElo "2383"]
[Result "0-1"]
[Round "3"]
[TimeControl "180+2"]
[Date "2023.06.13"]
[WhiteClock "0:00:00"]
[BlackClock "0:00:09"]
[Board "121"]

1. d4 {[%clk 0:03:00]}  Nf6 {[%clk 0:02:57]} 2. c4 {[%clk 0:03:01]}  g6 {[%clk 0:02:57]} 3. h4 {[%clk 0:03:00]}  Bg7 {[%clk 0:02:56]} 4. Nc3 {[%clk 0:03:00]}  c5 {[%clk 0:02:54]} 5. d5 {[%clk 0:03:00]}  O-O {[%clk 0:02:51]} 6. e4 {[%clk 0:02:59]}  d6 {[%clk 0:02:52]} 7. Be2 {[%clk 0:02:59]}  e6 {[%clk 0:02:52]} 8. h5 {[%clk 0:02:58]}  exd5 {[%clk 0:02:53]} 9. exd5 {[%clk 0:02:59]}  Re8 {[%clk 0:02:53]} 10. Kf1 {[%clk 0:03:00]}  Nbd7 {[%clk 0:02:42]} 11. h6 {[%clk 0:02:54]}  Bh8 {[%clk 0:02:42]} 12. g3 {[%clk 0:02:40]}  Ne4 {[%clk 0:02:38]} 13. Nxe4 {[%clk 0:02:38]}  Rxe4 {[%clk 0:02:39]} 14. Bd3 {[%clk 0:02:38]}  Re8 {[%clk 0:02:39]} 15. Nf3 {[%clk 0:02:38]}  Nf6 {[%clk 0:02:28]} 16. Bg5 {[%clk 0:02:32]}  Qb6 {[%clk 0:02:27]} 17. Qc2 {[%clk 0:02:32]}  Bg4 {[%clk 0:02:17]} 18. Kg2 {[%clk 0:02:31]}  Nd7 {[%clk 0:01:57]} 19. Bf4 {[%clk 0:02:18]}  Bxf3+ {[%clk 0:01:55]} 20. Kxf3 {[%clk 0:02:19]}  Ne5+ {[%clk 0:01:55]} 21. Bxe5 {[%clk 0:02:20]}  Rxe5 {[%clk 0:01:54]} 22. Rae1 {[%clk 0:01:58]}  Rae8 {[%clk 0:01:54]} 23. Rxe5 {[%clk 0:01:58]}  Rxe5 {[%clk 0:01:54]} 24. b3 {[%clk 0:01:58]}  Qd8 {[%clk 0:01:53]} 25. Rh4 {[%clk 0:01:52]}  f5 {[%clk 0:01:47]} 26. Qd2 {[%clk 0:01:47]}  Qe7 {[%clk 0:01:44]} 27. Rh1 {[%clk 0:01:36]}  Bf6 {[%clk 0:01:44]} 28. Kg2 {[%clk 0:01:33]}  b6 {[%clk 0:01:37]} 29. a3 {[%clk 0:00:44]}  Qe8 {[%clk 0:01:30]} 30. Rb1 {[%clk 0:00:34]}  Re7 {[%clk 0:01:29]} 31. b4 {[%clk 0:00:31]}  Bd4 {[%clk 0:01:29]} 32. bxc5 {[%clk 0:00:29]}  Bxc5 {[%clk 0:01:13]} 33. Qc3 {[%clk 0:00:27]}  Qf8 {[%clk 0:01:13]} 34. Rh1 {[%clk 0:00:24]}  f4 {[%clk 0:01:12]} 35. g4 {[%clk 0:00:21]}  f3+ {[%clk 0:01:11]} 36. Kg3 {[%clk 0:00:21]}  Re5 {[%clk 0:01:05]} 37. Bc2 {[%clk 0:00:15]}  Qf6 {[%clk 0:00:59]} 38. Bd1 {[%clk 0:00:12]}  Qe7 {[%clk 0:00:52]} 39. Bxf3 {[%clk 0:00:12]}  Qf6 {[%clk 0:00:48]} 40. Kg2 {[%clk 0:00:11]}  Qf4 {[%clk 0:00:46]} 41. Qd3 {[%clk 0:00:11]}  Re7 {[%clk 0:00:44]} 42. Rh3 {[%clk 0:00:09]}  Qe5 {[%clk 0:00:41]} 43. Rg3 {[%clk 0:00:09]}  Qb2 {[%clk 0:00:40]} 44. a4 {[%clk 0:00:08]}  Qxf2+ {[%clk 0:00:40]} 45. Kh3 {[%clk 0:00:08]}  Re3 {[%clk 0:00:37]} 46. Qd1 {[%clk 0:00:07]}  Re1 {[%clk 0:00:34]} 47. Qd3 {[%clk 0:00:05]}  Re3 {[%clk 0:00:20]} 48. Qd1 {[%clk 0:00:05]}  a5 {[%clk 0:00:19]} 49. Qh1 {[%clk 0:00:03]}  Bd4 {[%clk 0:00:16]} 50. Qg2 {[%clk 0:00:04]}  Qe1 {[%clk 0:00:15]} 51. Qh1 {[%clk 0:00:03]}  Be5 {[%clk 0:00:11]} 52. Qxe1 {[%clk 0:00:03]}  Rxe1 {[%clk 0:00:12]} 53. Rg2 {[%clk 0:00:03]}  Re3 {[%clk 0:00:12]} 54. Rf2 {[%clk 0:00:02]}  Rc3 {[%clk 0:00:12]} 55. Kg2 {[%clk 0:00:02]}  Rxc4 {[%clk 0:00:12]} 56. Be2 {[%clk 0:00:03]}  Rxa4 {[%clk 0:00:12]} 57. Bb5 {[%clk 0:00:03]}  Rxg4+ {[%clk 0:00:12]} 58. Kh3 {[%clk 0:00:01]}  Rf4 {[%clk 0:00:12]} 59. Rc2 {[%clk 0:00:00]}  g5 {[%clk 0:00:09]} 0-1


[Site "https://www.chess.com"]

[Event "Titled Tuesday Blitz June 13 Early 2023"]
[White "Mouhamad, Joachim"]
[Black "Nagare Kaivalya Sandip"]
[WhiteFideId "656410"]
[BlackFideId "25957929"]
[WhiteElo "2125"]
[BlackElo "2024"]
[Result "0-1"]
[Round "3"]
[TimeControl "180+2"]
[Date "2023.06.13"]
[WhiteClock "0:00:00"]
[BlackClock "0:00:22"]
[Board "125"]

1. e4 {[%clk 0:03:00]}  c5 {[%clk 0:02:58]} 2. Nf3 {[%clk 0:03:00]}  d6 {[%clk 0:02:58]} 3. d4 {[%clk 0:03:00]}  cxd4 {[%clk 0:02:59]} 4. Nxd4 {[%clk 0:03:01]}  Nf6 {[%clk 0:03:00]} 5. Nc3 {[%clk 0:03:02]}  a6 {[%clk 0:03:00]} 6. f3 {[%clk 0:03:02]}  e5 {[%clk 0:03:01]} 7. Nb3 {[%clk 0:03:02]}  Be6 {[%clk 0:03:01]} 8. Be3 {[%clk 0:03:02]}  h5 {[%clk 0:02:59]} 9. Nd5 {[%clk 0:03:02]}  Bxd5 {[%clk 0:02:58]} 10. exd5 {[%clk 0:03:03]}  Qc7 {[%clk 0:02:48]} 11. c4 {[%clk 0:03:01]}  Nbd7 {[%clk 0:02:46]} 12. Be2 {[%clk 0:02:59]}  a5 {[%clk 0:02:46]} 13. Rc1 {[%clk 0:02:58]}  a4 {[%clk 0:02:40]} 14. Na1 {[%clk 0:02:58]}  g6 {[%clk 0:02:38]} 15. O-O {[%clk 0:02:58]}  Bg7 {[%clk 0:02:31]} 16. Nc2 {[%clk 0:02:58]}  O-O {[%clk 0:02:31]} 17. Na3 {[%clk 0:02:59]}  b6 {[%clk 0:02:03]} 18. Nb5 {[%clk 0:02:59]}  Qb8 {[%clk 0:02:03]} 19. b4 {[%clk 0:02:54]}  axb3 {[%clk 0:02:03]} 20. axb3 {[%clk 0:02:54]}  Kh7 {[%clk 0:01:52]} 21. b4 {[%clk 0:02:53]}  Ng8 {[%clk 0:01:52]} 22. Ra1 {[%clk 0:02:47]}  Rxa1 {[%clk 0:01:51]} 23. Qxa1 {[%clk 0:02:47]}  e4 {[%clk 0:01:46]} 24. Qa7 {[%clk 0:02:41]}  Qxa7 {[%clk 0:01:35]} 25. Nxa7 {[%clk 0:02:41]}  Ra8 {[%clk 0:01:31]} 26. Nb5 {[%clk 0:02:37]}  Ra3 {[%clk 0:01:19]} 27. Kf2 {[%clk 0:02:26]}  f5 {[%clk 0:00:51]} 28. f4 {[%clk 0:02:18]}  Rb3 {[%clk 0:00:41]} 29. Nxd6 {[%clk 0:02:05]}  Rxb4 {[%clk 0:00:41]} 30. Rd1 {[%clk 0:01:56]}  Ngf6 {[%clk 0:00:39]} 31. h3 {[%clk 0:01:54]}  Nc5 {[%clk 0:00:35]} 32. Nf7 {[%clk 0:01:40]}  Nfd7 {[%clk 0:00:32]} 33. Rd2 {[%clk 0:01:28]}  Rb1 {[%clk 0:00:16]} 34. Ng5+ {[%clk 0:01:19]}  Kg8 {[%clk 0:00:15]} 35. Ra2 {[%clk 0:01:19]}  Ra1 {[%clk 0:00:16]} 36. Rxa1 {[%clk 0:01:15]}  Bxa1 {[%clk 0:00:17]} 37. g4 {[%clk 0:01:14]}  hxg4 {[%clk 0:00:17]} 38. hxg4 {[%clk 0:01:15]}  Nf6 {[%clk 0:00:16]} 39. gxf5 {[%clk 0:01:13]}  gxf5 {[%clk 0:00:17]} 40. Ne6 {[%clk 0:00:53]}  Nfd7 {[%clk 0:00:16]} 41. Kg3 {[%clk 0:00:40]}  Kf7 {[%clk 0:00:15]} 42. Kh4 {[%clk 0:00:38]}  Nxe6 {[%clk 0:00:15]} 43. dxe6+ {[%clk 0:00:37]}  Kxe6 {[%clk 0:00:16]} 44. Kg5 {[%clk 0:00:37]}  Bf6+ {[%clk 0:00:16]} 45. Kg6 {[%clk 0:00:37]}  Nf8+ {[%clk 0:00:15]} 46. Kh6 {[%clk 0:00:37]}  Nd7 {[%clk 0:00:15]} 47. Kg6 {[%clk 0:00:35]}  Be7 {[%clk 0:00:15]} 48. Bf1 {[%clk 0:00:34]}  Bc5 {[%clk 0:00:15]} 49. Bxc5 {[%clk 0:00:25]}  bxc5 {[%clk 0:00:15]} 50. Bh3 {[%clk 0:00:26]}  Nf8+ {[%clk 0:00:14]} 51. Kg5 {[%clk 0:00:24]}  e3 {[%clk 0:00:13]} 52. Bxf5+ {[%clk 0:00:24]}  Kd6 {[%clk 0:00:13]} 53. Bd3 {[%clk 0:00:18]}  Ne6+ {[%clk 0:00:14]} 54. Kg4 {[%clk 0:00:19]}  Nd4 {[%clk 0:00:14]} 55. Kg3 {[%clk 0:00:18]}  Ke6 {[%clk 0:00:13]} 56. Kg2 {[%clk 0:00:17]}  Kf6 {[%clk 0:00:14]} 57. Kg3 {[%clk 0:00:17]}  Kg7 {[%clk 0:00:14]} 58. Kg2 {[%clk 0:00:15]}  Kh6 {[%clk 0:00:14]} 59. Kg3 {[%clk 0:00:07]}  Kh5 {[%clk 0:00:15]} 60. Kg2 {[%clk 0:00:06]}  Kg4 {[%clk 0:00:14]} 61. f5 {[%clk 0:00:06]}  Nxf5 {[%clk 0:00:14]} 62. Bxf5+ {[%clk 0:00:04]}  Kxf5 {[%clk 0:00:14]} 63. Kf3 {[%clk 0:00:04]}  e2 {[%clk 0:00:14]} 64. Kxe2 {[%clk 0:00:04]}  Ke4 {[%clk 0:00:15]} 65. Kd1 {[%clk 0:00:02]}  Kd3 {[%clk 0:00:15]} 66. Kc1 {[%clk 0:00:02]}  Kc3 {[%clk 0:00:16]} 67. Kd1 {[%clk 0:00:02]}  Kb2 {[%clk 0:00:16]} 68. Kd2 {[%clk 0:00:02]}  Ka2 {[%clk 0:00:15]} 69. Kc2 {[%clk 0:00:02]}  Ka3 {[%clk 0:00:15]} 70. Kc3 {[%clk 0:00:03]}  Ka4 {[%clk 0:00:15]} 71. Kd2 {[%clk 0:00:01]}  Kb3 {[%clk 0:00:15]} 72. Kd3 {[%clk 0:00:02]}  Kb4 {[%clk 0:00:16]} 73. Kd2 {[%clk 0:00:02]}  Kxc4 {[%clk 0:00:16]} 74. Kc2 {[%clk 0:00:03]}  Kd4 {[%clk 0:00:17]} 75. Kd2 {[%clk 0:00:03]}  Ke5 {[%clk 0:00:17]} 76. Ke3 {[%clk 0:00:03]}  Kd6 {[%clk 0:00:18]} 77. Kd3 {[%clk 0:00:03]}  Kc7 {[%clk 0:00:18]} 78. Kc4 {[%clk 0:00:03]}  Kb6 {[%clk 0:00:18]} 79. Kc3 {[%clk 0:00:03]}  Kb5 {[%clk 0:00:18]} 80. Kb3 {[%clk 0:00:04]}  c4+ {[%clk 0:00:17]} 81. Kc3 {[%clk 0:00:05]}  Kc5 {[%clk 0:00:18]} 82. Kc2 {[%clk 0:00:05]}  Kd4 {[%clk 0:00:19]} 83. Kd2 {[%clk 0:00:05]}  Ke4 {[%clk 0:00:20]} 84. Ke2 {[%clk 0:00:06]}  Kd5 {[%clk 0:00:20]} 85. Kd2 {[%clk 0:00:05]}  Ke4 {[%clk 0:00:20]} 86. Ke2 {[%clk 0:00:05]}  c3 {[%clk 0:00:20]} 87. Ke1 {[%clk 0:00:04]}  Ke3 {[%clk 0:00:20]} 88. Kd1 {[%clk 0:00:02]}  Kd3 {[%clk 0:00:21]} 89. Kc1 {[%clk 0:00:03]}  c2 {[%clk 0:00:22]} 90. Kb2 {[%clk 0:00:00]}  Kd2 {[%clk 0:00:22]} 0-1


[Site "https://www.chess.com"]

[Event "Titled Tuesday Blitz June 13 Early 2023"]
[White "robertoalejandro10"]
[Black "Begunov, Konstantin"]
[BlackFideId "4118510"]
[WhiteElo "2591"]
[BlackElo "1993"]
[Result "1-0"]
[Round "3"]
[TimeControl "180+2"]
[Date "2023.06.13"]
[WhiteClock "0:00:05"]
[BlackClock "0:00:00"]
[Board "130"]

1. Nf3 {[%clk 0:03:00]}  d5 {[%clk 0:02:56]} 2. b3 {[%clk 0:02:59]}  Bg4 {[%clk 0:02:55]} 3. Bb2 {[%clk 0:02:57]}  Bxf3 {[%clk 0:02:55]} 4. exf3 {[%clk 0:02:57]}  e6 {[%clk 0:02:56]} 5. g3 {[%clk 0:02:57]}  Nf6 {[%clk 0:02:56]} 6. Bg2 {[%clk 0:02:57]}  g6 {[%clk 0:02:57]} 7. O-O {[%clk 0:02:58]}  Bg7 {[%clk 0:02:57]} 8. d3 {[%clk 0:02:58]}  O-O {[%clk 0:02:57]} 9. Nd2 {[%clk 0:02:58]}  a5 {[%clk 0:02:55]} 10. a4 {[%clk 0:02:57]}  Nbd7 {[%clk 0:02:55]} 11. f4 {[%clk 0:02:57]}  c6 {[%clk 0:02:54]} 12. Nf3 {[%clk 0:02:56]}  Re8 {[%clk 0:02:52]} 13. Re1 {[%clk 0:02:56]}  Qb6 {[%clk 0:02:47]} 14. Qe2 {[%clk 0:02:53]}  Ng4 {[%clk 0:02:38]} 15. Ne5 {[%clk 0:02:23]}  Ngxe5 {[%clk 0:02:32]} 16. fxe5 {[%clk 0:02:20]}  d4 {[%clk 0:02:03]} 17. f4 {[%clk 0:02:14]}  c5 {[%clk 0:02:03]} 18. Qe4 {[%clk 0:02:09]}  Rab8 {[%clk 0:02:00]} 19. Ba3 {[%clk 0:02:06]}  Qc7 {[%clk 0:01:57]} 20. h3 {[%clk 0:02:01]}  Nb6 {[%clk 0:01:56]} 21. Qe2 {[%clk 0:01:56]}  Rbd8 {[%clk 0:01:52]} 22. Qd2 {[%clk 0:01:51]}  Nd5 {[%clk 0:01:51]} 23. Bxd5 {[%clk 0:01:48]}  Rxd5 {[%clk 0:01:50]} 24. Re2 {[%clk 0:01:46]}  h5 {[%clk 0:01:41]} 25. Rae1 {[%clk 0:01:37]}  b6 {[%clk 0:01:30]} 26. Re4 {[%clk 0:01:33]}  Kf8 {[%clk 0:01:28]} 27. Qe2 {[%clk 0:01:29]}  Ke7 {[%clk 0:01:27]} 28. Bc1 {[%clk 0:01:27]}  Kd7 {[%clk 0:01:25]} 29. Bd2 {[%clk 0:01:22]}  Kc8 {[%clk 0:01:25]} 30. Qf3 {[%clk 0:01:20]}  Rh8 {[%clk 0:01:23]} 31. R1e2 {[%clk 0:01:16]}  Qc6 {[%clk 0:01:21]} 32. Be1 {[%clk 0:00:59]}  Kc7 {[%clk 0:01:20]} 33. Bf2 {[%clk 0:01:00]}  Rdd8 {[%clk 0:01:18]} 34. Be1 {[%clk 0:00:54]}  Qd5 {[%clk 0:01:18]} 35. Rg2 {[%clk 0:00:45]}  Rh7 {[%clk 0:01:15]} 36. Bd2 {[%clk 0:00:40]}  Qc6 {[%clk 0:01:11]} 37. Kf2 {[%clk 0:00:40]}  Rdh8 {[%clk 0:01:05]} 38. Re2 {[%clk 0:00:39]}  Qxf3+ {[%clk 0:01:04]} 39. Kxf3 {[%clk 0:00:40]}  Kc6 {[%clk 0:01:05]} 40. Ke4 {[%clk 0:00:37]}  Bf8 {[%clk 0:01:01]} 41. c3 {[%clk 0:00:36]}  dxc3 {[%clk 0:01:00]} 42. Bxc3 {[%clk 0:00:37]}  Be7 {[%clk 0:00:59]} 43. Rc2 {[%clk 0:00:37]}  Rd8 {[%clk 0:00:55]} 44. Rgd2 {[%clk 0:00:37]}  Kb7 {[%clk 0:00:50]} 45. d4 {[%clk 0:00:36]}  Rhh8 {[%clk 0:00:33]} 46. dxc5 {[%clk 0:00:37]}  Bxc5 {[%clk 0:00:32]} 47. Bd4 {[%clk 0:00:10]}  Bxd4 {[%clk 0:00:28]} 48. Rxd4 {[%clk 0:00:11]}  Rxd4+ {[%clk 0:00:27]} 49. Kxd4 {[%clk 0:00:11]}  Rd8+ {[%clk 0:00:28]} 50. Ke3 {[%clk 0:00:12]}  Rd1 {[%clk 0:00:27]} 51. Rc3 {[%clk 0:00:12]}  Rh1 {[%clk 0:00:23]} 52. h4 {[%clk 0:00:12]}  Rg1 {[%clk 0:00:23]} 53. Kd4 {[%clk 0:00:11]}  Re1 {[%clk 0:00:21]} 54. Kc4 {[%clk 0:00:07]}  Re2 {[%clk 0:00:19]} 55. Kb5 {[%clk 0:00:05]}  Rd2 {[%clk 0:00:17]} 56. Kc4 {[%clk 0:00:03]}  Kc6 {[%clk 0:00:15]} 57. Rd3 {[%clk 0:00:03]}  Rxd3 {[%clk 0:00:09]} 58. Kxd3 {[%clk 0:00:04]}  Kd5 {[%clk 0:00:10]} 59. Kc3 {[%clk 0:00:04]}  Kc5 {[%clk 0:00:10]} 60. Kd3 {[%clk 0:00:03]}  Kb4 {[%clk 0:00:09]} 61. Kc2 {[%clk 0:00:03]}  Ka3 {[%clk 0:00:04]} 62. Kc3 {[%clk 0:00:03]}  Ka2 {[%clk 0:00:05]} 63. Kc4 {[%clk 0:00:03]}  Kb2 {[%clk 0:00:05]} 64. b4 {[%clk 0:00:04]}  axb4 {[%clk 0:00:00]} 65. Kxb4 {[%clk 0:00:05]} 1-0


[Site "https://www.chess.com"]

[Event "Titled Tuesday Blitz June 13 Early 2023"]
[White "RobertDowneyJr0111"]
[Black "sebastianmarinp"]
[WhiteElo "2590"]
[BlackElo "2374"]
[Result "0-1"]
[Round "3"]
[TimeControl "180+2"]
[Date "2023.06.13"]
[WhiteClock "0:00:35"]
[BlackClock "0:00:07"]
[Board "131"]

1. e4 {[%clk 0:03:00]}  e5 {[%clk 0:02:59]} 2. Nf3 {[%clk 0:03:01]}  Nc6 {[%clk 0:02:58]} 3. Bc4 {[%clk 0:03:02]}  Nf6 {[%clk 0:02:57]} 4. O-O {[%clk 0:03:02]}  Nxe4 {[%clk 0:02:54]} 5. Bd5 {[%clk 0:03:03]}  Nf6 {[%clk 0:02:51]} 6. Bxc6 {[%clk 0:03:03]}  dxc6 {[%clk 0:02:47]} 7. Nxe5 {[%clk 0:03:03]}  Be7 {[%clk 0:02:41]} 8. d4 {[%clk 0:03:04]}  O-O {[%clk 0:02:41]} 9. Nc3 {[%clk 0:03:03]}  Bf5 {[%clk 0:02:39]} 10. Bf4 {[%clk 0:02:58]}  Nd5 {[%clk 0:02:35]} 11. Nxd5 {[%clk 0:02:57]}  Qxd5 {[%clk 0:02:33]} 12. Bg3 {[%clk 0:02:53]}  Rad8 {[%clk 0:02:29]} 13. c3 {[%clk 0:02:53]}  c5 {[%clk 0:02:14]} 14. dxc5 {[%clk 0:02:51]}  Bxc5 {[%clk 0:02:15]} 15. Qb3 {[%clk 0:02:39]}  Rfe8 {[%clk 0:02:04]} 16. Rfe1 {[%clk 0:02:30]}  Be6 {[%clk 0:01:42]} 17. Qxd5 {[%clk 0:02:09]}  Bxd5 {[%clk 0:01:43]} 18. b3 {[%clk 0:01:53]}  Be6 {[%clk 0:01:11]} 19. Rad1 {[%clk 0:01:45]}  Rxd1 {[%clk 0:00:56]} 20. Rxd1 {[%clk 0:01:45]}  Bd6 {[%clk 0:00:56]} 21. Nd3 {[%clk 0:01:42]}  Bxg3 {[%clk 0:00:52]} 22. hxg3 {[%clk 0:01:43]}  Rd8 {[%clk 0:00:53]} 23. Kf1 {[%clk 0:01:36]}  Bf5 {[%clk 0:00:52]} 24. Nb2 {[%clk 0:01:24]}  Rxd1+ {[%clk 0:00:49]} 25. Nxd1 {[%clk 0:01:25]}  Bb1 {[%clk 0:00:42]} 26. Ne3 {[%clk 0:01:11]}  Bxa2 {[%clk 0:00:39]} 27. b4 {[%clk 0:01:11]}  Be6 {[%clk 0:00:37]} 28. Ke2 {[%clk 0:01:11]}  Kf8 {[%clk 0:00:36]} 29. Kd3 {[%clk 0:01:12]}  Ke7 {[%clk 0:00:36]} 30. Kd4 {[%clk 0:01:13]}  Kd6 {[%clk 0:00:35]} 31. c4 {[%clk 0:01:13]}  b6 {[%clk 0:00:30]} 32. c5+ {[%clk 0:01:09]}  bxc5+ {[%clk 0:00:31]} 33. bxc5+ {[%clk 0:01:10]}  Kc6 {[%clk 0:00:31]} 34. f4 {[%clk 0:01:11]}  g6 {[%clk 0:00:24]} 35. g4 {[%clk 0:01:11]}  a5 {[%clk 0:00:20]} 36. g5 {[%clk 0:01:11]}  a4 {[%clk 0:00:17]} 37. Nc2 {[%clk 0:01:02]}  Kb5 {[%clk 0:00:15]} 38. g3 {[%clk 0:00:57]}  Bf5 {[%clk 0:00:09]} 39. Na3+ {[%clk 0:00:47]}  Kb4 {[%clk 0:00:09]} 40. Nc4 {[%clk 0:00:48]}  a3 {[%clk 0:00:09]} 41. Nxa3 {[%clk 0:00:44]}  Kxa3 {[%clk 0:00:10]} 42. Kd5 {[%clk 0:00:45]}  Kb4 {[%clk 0:00:10]} 43. Kc6 {[%clk 0:00:45]}  Be4+ {[%clk 0:00:07]} 44. Kxc7 {[%clk 0:00:45]}  Kxc5 {[%clk 0:00:08]} 45. Kd7 {[%clk 0:00:46]}  Kd4 {[%clk 0:00:07]} 46. Ke7 {[%clk 0:00:46]}  Bd5 {[%clk 0:00:07]} 47. Kf6 {[%clk 0:00:44]}  Ke4 {[%clk 0:00:07]} 48. Kg7 {[%clk 0:00:35]}  Kf3 {[%clk 0:00:07]} 0-1


[Site "https://www.chess.com"]

[Event "Titled Tuesday Blitz June 13 Early 2023"]
[White "Spata, German"]
[Black "Rosenberg, Evan S"]
[WhiteFideId "113026"]
[BlackFideId "2019299"]
[WhiteElo "2260"]
[BlackElo "2364"]
[Result "1/2-1/2"]
[Round "3"]
[TimeControl "180+2"]
[Date "2023.06.13"]
[WhiteClock "0:00:11"]
[BlackClock "0:00:09"]
[Board "136"]

1. Nf3 {[%clk 0:02:57]}  d5 {[%clk 0:02:59]} 2. d4 {[%clk 0:02:57]}  Bf5 {[%clk 0:02:59]} 3. e3 {[%clk 0:02:57]}  e6 {[%clk 0:02:58]} 4. Bd3 {[%clk 0:02:57]}  Bxd3 {[%clk 0:02:56]} 5. Qxd3 {[%clk 0:02:58]}  c6 {[%clk 0:02:45]} 6. O-O {[%clk 0:02:57]}  Nd7 {[%clk 0:02:45]} 7. Nbd2 {[%clk 0:02:57]}  Ngf6 {[%clk 0:02:45]} 8. e4 {[%clk 0:02:57]}  dxe4 {[%clk 0:02:45]} 9. Nxe4 {[%clk 0:02:58]}  Nxe4 {[%clk 0:02:46]} 10. Qxe4 {[%clk 0:02:59]}  Be7 {[%clk 0:02:45]} 11. c3 {[%clk 0:02:59]}  O-O {[%clk 0:02:45]} 12. Rd1 {[%clk 0:02:59]}  Re8 {[%clk 0:02:44]} 13. Bf4 {[%clk 0:02:58]}  Qa5 {[%clk 0:02:43]} 14. h3 {[%clk 0:02:58]}  Qh5 {[%clk 0:02:42]} 15. Qe2 {[%clk 0:02:51]}  a6 {[%clk 0:02:39]} 16. Rd2 {[%clk 0:02:51]}  Rac8 {[%clk 0:02:37]} 17. Rad1 {[%clk 0:02:52]}  h6 {[%clk 0:02:35]} 18. Qc4 {[%clk 0:02:39]}  b5 {[%clk 0:02:16]} 19. Qe2 {[%clk 0:02:36]}  Nf6 {[%clk 0:02:06]} 20. Ne5 {[%clk 0:02:24]}  Qxe2 {[%clk 0:02:05]} 21. Rxe2 {[%clk 0:02:24]}  Red8 {[%clk 0:02:05]} 22. Nd3 {[%clk 0:02:18]}  c5 {[%clk 0:02:02]} 23. dxc5 {[%clk 0:02:14]}  Bxc5 {[%clk 0:02:01]} 24. Red2 {[%clk 0:02:14]}  Bb6 {[%clk 0:01:58]} 25. Nb4 {[%clk 0:02:06]}  Rxd2 {[%clk 0:01:51]} 26. Rxd2 {[%clk 0:02:07]}  a5 {[%clk 0:01:51]} 27. Nc2 {[%clk 0:01:58]}  Ne4 {[%clk 0:01:47]} 28. Re2 {[%clk 0:01:54]}  f5 {[%clk 0:01:48]} 29. Be3 {[%clk 0:01:50]}  Bxe3 {[%clk 0:01:43]} 30. Nxe3 {[%clk 0:01:51]}  Rd8 {[%clk 0:01:43]} 31. f3 {[%clk 0:01:43]}  Ng3 {[%clk 0:01:38]} 32. Rc2 {[%clk 0:01:38]}  f4 {[%clk 0:01:35]} 33. Kf2 {[%clk 0:01:01]}  fxe3+ {[%clk 0:01:34]} 34. Kxg3 {[%clk 0:01:01]}  Rd2 {[%clk 0:01:35]} 35. Rc1 {[%clk 0:00:56]}  Rxb2 {[%clk 0:01:30]} 36. a4 {[%clk 0:00:56]}  bxa4 {[%clk 0:01:18]} 37. Ra1 {[%clk 0:00:56]}  e2 {[%clk 0:01:11]} 38. Kf2 {[%clk 0:00:53]}  e1=Q+ {[%clk 0:01:01]} 39. Kxe1 {[%clk 0:00:53]}  Rxg2 {[%clk 0:00:52]} 40. Rxa4 {[%clk 0:00:54]}  Rg5 {[%clk 0:00:45]} 41. Ke2 {[%clk 0:00:49]}  Kf7 {[%clk 0:00:40]} 42. Kd3 {[%clk 0:00:39]}  Ke7 {[%clk 0:00:37]} 43. Rc4 {[%clk 0:00:31]}  Kd6 {[%clk 0:00:35]} 44. Rc8 {[%clk 0:00:31]}  Kd7 {[%clk 0:00:29]} 45. Ra8 {[%clk 0:00:29]}  h5 {[%clk 0:00:28]} 46. c4 {[%clk 0:00:28]}  g6 {[%clk 0:00:23]} 47. Kd4 {[%clk 0:00:26]}  Rf5 {[%clk 0:00:18]} 48. Ra7+ {[%clk 0:00:21]}  Kc6 {[%clk 0:00:14]} 49. Ra6+ {[%clk 0:00:21]}  Kd7 {[%clk 0:00:14]} 50. Ra7+ {[%clk 0:00:21]}  Kd6 {[%clk 0:00:11]} 51. Ra6+ {[%clk 0:00:21]}  Ke7 {[%clk 0:00:11]} 52. Ke4 {[%clk 0:00:14]}  Rc5 {[%clk 0:00:08]} 53. Kd4 {[%clk 0:00:14]}  Rf5 {[%clk 0:00:08]} 54. Ke4 {[%clk 0:00:14]}  Rc5 {[%clk 0:00:08]} 55. Kd4 {[%clk 0:00:11]}  Rf5 {[%clk 0:00:09]} 1/2-1/2


[Site "https://www.chess.com"]